[Event "7th Summer Cup 2024"]
[Site "Rhodes"]
[Date "2024.06.28"]
[Round "7.9"]
[White "Rigopoulos-Tsigkos, Alexandros"]
[Black "Grapsa, Georgia"]
[Result "1/2-1/2"]
[ECO "B12"]
[WhiteElo "2039"]
[BlackElo "1979"]
[Annotator "NA RC"]
[PlyCount "116"]
[EventDate "2024.06.21"]
[EventType "swiss"]
[EventCountry "GRE"]
[SourceTitle "playchess.com"]
[Source "ChessBase"]
[SourceQuality "1"]
[TimeControl "40/5400+30:900+30"]

1. e4 {[%emt 0:05:46]} c6 {[%emt 0:00:06]} 2. d4 {[%emt 0:00:14]} d5 {[%emt 0:00:04]} 3. e5 {[%emt 0:00:34]} Bf5 {[%emt 0:00:17]} 4. h4 {[%emt 0:00:08]} h5 {[%emt 0:00:11]} 5. c4 {[%emt 0:00:54]} e6 {[%emt 0:00:10]} 6. Nc3 {[%emt 0:00:41]} dxc4 {[%emt 0:00:31]} 7. Bxc4 {[%emt 0:01:24]} Nd7 {[%emt 0:00:24]} 8. Nf3 {[%emt 0:03:07]} Bg4 {[%emt 0:01:42]} 9. Be2 $11 {[%emt 0:06:57]} Nh6 {[%emt 0:05:09]} 10. Bxh6 {[%emt 0:06:58]} Rxh6 {[%emt 0:02:01]} 11. Ng5 {[%emt 0:02:02]} Bxe2 {[%emt 0:00:54]} 12. Qxe2 {[%emt 0:00:41]} Be7 {[%emt 0:10:31]} 13. Nce4 {[%emt 0:26:05]} Nf8 {[%emt 0:13:16]} 14. Rd1 {[%emt 0:09:35]} f6 {[%emt 0:02:50]} 15. Nf3 {[%emt 0:08:43]} Qa5+ {[%emt 0:10:02]} 16. Nc3 {[%emt 0:00:46]} O-O-O {[%emt 0:01:19]} 17. O-O {[%emt 0:00:34]} f5 {[%emt 0:08:40]} 18. a3 {[%emt 0:01:43]} Rg6 {[%emt 0:06:24]} 19. Ra1 {[%emt 0:06:12]} Rg4 {[%emt 0:03:06]} 20. b4 {[%emt 0:00:56]} Qb6 {[%emt 0:01:51]} 21. b5 {[%emt 0:02:10]} Ng6 {[%emt 0:02:45]} 22. Qc4 {[%emt 0:03:34]} Nf4 {[%emt 0:07:47]} 23. g3 {[%emt 0:00:46]} Kb8 {[%emt 0:01:39]} 24. Rab1 {[%emt 0:03:00]} cxb5 {[%emt 0:03:04]} 25. Rxb5 {[%emt 0:01:55]} Qc7 {[%emt 0:00:33]} 26. Rxb7+ {[%emt 0:02:25]} Kxb7 {[%emt 0:03:43]} 27. Rb1+ {[%emt 0:00:07]} Qb6 {[%emt 0:00:19]} 28. Rxb6+ {[%emt 0:00:29]} axb6 {[%emt 0:00:13]} 29. Kh2 {[%emt 0:02:57]} Nd5 {[%emt 0:01:27]} 30. Nb5 {[%emt 0:01:52]} f4 {[%emt 0:02:06]} 31. Ng5 {[%emt 0:00:55]} fxg3+ {[%emt 0:00:41]} 32. fxg3 {[%emt 0:00:49]} Rc8 {[%emt 0:04:38]} 33. Qb3 {[%emt 0:00:44]} Nc7 {[%emt 0:04:23]} 34. Nxc7 {[%emt 0:01:05]} Rxc7 {[%emt 0:00:12]} 35. Nxe6 {[%emt 0:00:22]} Rc1 {[%emt 0:02:26]} 36. Qd5+ {[%emt 0:00:20]} Kc8 {[%emt 0:00:34]} 37. Nf4 {[%emt 0:00:43]} Bxh4 {[%emt 0:01:54]} 38. Qa8+ {[%emt 0:00:25]} Kd7 {[%emt 0:00:22]} 39. e6+ {[%emt 0:00:23]} Kd6 {[%emt 0:01:03]} 40. Qd5+ {[%emt 0:00:00]} Kc7 {[%emt 0:00:00]} 41. Qe5+ {[%emt 0:02:38]} Kb7 {[%emt 0:01:11]} 42. Ne2 {[%emt 0:05:21]} Bf6 {[%emt 0:01:29]} 43. Qxh5 {[%emt 0:01:27]} Rg5 {[%emt 0:00:02]} 44. Qxg5 {[%emt 0:00:46]} Bxg5 {[%emt 0:00:05]} 45. Nxc1 {[%emt 0:00:08]} Kc6 {[%emt 0:00:11]} 46. Ne2 {[%emt 0:04:07]} Kd6 {[%emt 0:01:28]} 47. Kh3 {[%emt 0:03:59]} Kxe6 {[%emt 0:01:21]} 48. Kg4 {[%emt 0:00:11]} Bf6 {[%emt 0:01:25]} 49. Nf4+ {[%emt 0:00:22]} Kd6 {[%emt 0:00:28]} 50. Ne2 {[%emt 0:01:45]} Kd5 {[%emt 0:01:27]} 51. Kf5 {[%emt 0:00:31]} Bxd4 {[%emt 0:05:38]} 52. Nxd4 {[%emt 0:00:10]} Kxd4 {[%emt 0:00:03]} 53. Kg6 {[%emt 0:00:06]} Kc3 {[%emt 0:00:10]} 54. Kxg7 {[%emt 0:00:10]} Kb3 {[%emt 0:00:12]} 55. Kf6 {[%emt 0:00:27]} Kxa3 {[%emt 0:00:12]} 56. g4 {[%emt 0:00:05]} b5 {[%emt 0:00:02]} 57. g5 {[%emt 0:00:05]} b4 {[%emt 0:00:03]} 58. g6 {[%emt 0:00:06]} b3 {[%emt 0:00:03]} 1/2-1/2

[Event "7th Summer Cup 2024"]
[Site "Rhodes"]
[Date "2024.06.28"]
[Round "7.10"]
[White "Seres, Bela"]
[Black "Perrakis, Polychronis"]
[Result "1-0"]
[ECO "C63"]
[WhiteElo "2126"]
[BlackElo "1754"]
[Annotator "RC"]
[PlyCount "63"]
[EventDate "2024.06.21"]
[EventType "swiss"]
[EventCountry "GRE"]
[SourceTitle "playchess.com"]
[Source "ChessBase"]
[SourceQuality "1"]
[TimeControl "40/5400+30:900+30"]

1. e4 {[%emt 0:00:00]} e5 {[%emt 0:00:18]} 2. Nf3 {[%emt 0:00:08]} Nc6 {[%emt 0:00:11]} 3. Bb5 {[%emt 0:00:13]} f5 {[%emt 0:00:16]} 4. d4 {[%emt 0:04:20]} fxe4 {[%emt 0:08:15]} 5. Nxe5 {[%emt 0:00:46]} Nxe5 {[%emt 0:14:08]} 6. dxe5 {[%emt 0:00:36]} c6 {[%emt 0:00:38]} 7. Bc4 {[%emt 0:01:03]} Qa5+ {[%emt 0:01:21]} 8. Nc3 {[%emt 0:00:06]} Qxe5 {[%emt 0:01:02]} 9. Bxg8 {[%emt 0:01:41]} Rxg8 {[%emt 0:00:42]} 10. Qe2 {[%emt 0:02:31]} d5 {[%emt 0:00:41]} 11. f3 {[%emt 0:00:38]} Bb4 {[%emt 0:03:44]} 12. Bd2 {[%emt 0:01:19]} Bxc3 {[%emt 0:01:31]} 13. bxc3 {[%emt 0:01:32]} Bf5 {[%emt 0:02:25]} 14. O-O {[%emt 0:00:13]} O-O-O {[%emt 0:03:30]} 15. fxe4 {[%emt 0:00:14]} Bxe4 {[%emt 0:03:44]} 16. Be3 {[%emt 0:05:36]} g6 {[%emt 0:28:04]} 17. Bxa7 {[%emt 0:04:25]} Qxc3 {[%emt 0:03:31]} 18. Qg4+ {[%emt 0:01:46]} Bf5 {[%emt 0:01:07]} 19. Qf4 {[%emt 0:00:57]} Kd7 {[%emt 0:04:24]} 20. Rab1 {[%emt 0:10:42]} b5 {[%emt 0:01:51]} 21. Bb6 {[%emt 0:19:11]} Rc8 {[%emt 0:01:26]} 22. a4 {[%emt 0:01:18]} bxa4 {[%emt 0:04:53]} 23. Bd4 {[%emt 0:00:28]} Qa5 {[%emt 0:10:12]} 24. Rb7+ {[%emt 0:00:17]} Rc7 {[%emt 0:01:00]} 25. Bb6 {[%emt 0:00:08]} Rxb7 {[%emt 0:00:23]} 26. Bxa5 {[%emt 0:00:18]} Ra8 {[%emt 0:00:35]} 27. Bb4 {[%emt 0:00:16]} c5 {[%emt 0:02:49]} 28. Bxc5 {[%emt 0:00:30]} Ra6 {[%emt 0:00:05]} 29. Ba3 {[%emt 0:01:01]} Bxc2 {[%emt 0:01:37]} 30. Qf7+ {[%emt 0:01:07]} Kc8 {[%emt 0:00:31]} 31. Qf8+ {[%emt 0:02:33]} Kc7 {[%emt 0:00:28]} 32. Rf7+ {[%emt 0:00:12]} 1-0

[Event "7th Summer Cup 2024"]
[Site "Rhodes"]
[Date "2024.06.28"]
[Round "7.11"]
[White "Al Maamari, Wafia Darwish"]
[Black "Sioulis, Stergios"]
[Result "0-1"]
[ECO "D32"]
[WhiteElo "1933"]
[BlackElo "1743"]
[Annotator "NA RC"]
[PlyCount "50"]
[EventDate "2024.06.21"]
[EventType "swiss"]
[EventCountry "GRE"]
[SourceTitle "playchess.com"]
[Source "ChessBase"]
[SourceQuality "1"]
[TimeControl "40/5400+30:900+30"]

1. Nf3 {[%emt 0:00:03]} c5 {[%emt 0:09:35]} 2. b3 {[%emt 0:00:38]} Nf6 {[%emt 0:01:48]} 3. Bb2 {[%emt 0:00:31]} d5 {[%emt 0:00:24]} 4. e3 {[%emt 0:02:16]} e6 {[%emt 0:01:49]} 5. c4 {[%emt 0:01:13]} Nc6 {[%emt 0:05:02]} 6. cxd5 {[%emt 0:02:51]} exd5 {[%emt 0:00:36]} 7. d4 {[%emt 0:05:06]} Be7 {[%emt 0:03:17]} 8. Be2 {[%emt 0:01:55]} O-O {[%emt 0:00:35]} 9. O-O {[%emt 0:01:12]} Be6 {[%emt 0:03:47]} 10. dxc5 {[%emt 0:03:43]} Bxc5 {[%emt 0:00:16]} 11. Na3 {[%emt 0:01:24]} Qe7 {[%emt 0:09:10]} 12. Nb5 {[%emt 0:02:53]} Rfe8 {[%emt 0:06:33]} 13. Rc1 {[%emt 0:04:53]} Rac8 {[%emt 0:05:44]} 14. Qd3 {[%emt 0:13:06]} Ne4 {[%emt 0:02:34]} 15. Nbd4 {[%emt 0:11:44]} Nb4 {[%emt 0:03:42]} 16. Qb1 {[%emt 0:01:46]} Bg4 {[%emt 0:08:01]} 17. Rfd1 {[%emt 0:08:25]} Nxf2 {[%emt 0:03:28]} 18. Rxc5 {[%emt 0:09:16]} Nxd1 {[%emt 0:02:30]} 19. Qxd1 {[%emt 0:07:10]} Qxe3+ {[%emt 0:00:31]} 20. Kf1 {[%emt 0:01:39]} Rxc5 {[%emt 0:00:19]} 21. a3 {[%emt 0:01:46]} Bxf3 {[%emt 0:04:07]} 22. Nxf3 {[%emt 0:02:28]} Rc2 {[%emt 0:01:53]} 23. Bd4 {[%emt 0:03:15]} Qf4 {[%emt 0:02:13]} 24. g3 {[%emt 0:03:11]} Qc7 {[%emt 0:01:43]} 25. Kg2 {[%emt 0:04:41]} Rcxe2+ {[%emt 0:00:37]} 0-1

[Event "7th Summer Cup 2024"]
[Site "Rhodes"]
[Date "2024.06.28"]
[Round "7.12"]
[White "Michelakis, Evaggelos"]
[Black "Girard, Adrien"]
[Result "0-1"]
[ECO "B12"]
[WhiteElo "1734"]
[BlackElo "1828"]
[Annotator "NA RC"]
[PlyCount "66"]
[EventDate "2024.06.21"]
[EventType "swiss"]
[EventCountry "GRE"]
[SourceTitle "playchess.com"]
[Source "ChessBase"]
[SourceQuality "1"]
[TimeControl "40/5400+30:900+30"]

1. e4 {[%emt 0:00:03]} c6 {[%emt 0:00:03]} 2. d4 {[%emt 0:00:11]} d5 {[%emt 0:00:05]} 3. f3 {[%emt 0:01:07]} dxe4 {[%emt 0:00:06]} 4. fxe4 {[%emt 0:00:14]} e5 {[%emt 0:00:03]} 5. Nf3 {[%emt 0:00:40]} Bg4 {[%emt 0:00:04]} 6. c3 {[%emt 0:01:04]} Nd7 {[%emt 0:00:20]} 7. Bc4 {[%emt 0:03:39]} Ngf6 {[%emt 0:01:28]} 8. Bg5 {[%emt 0:01:16]} Bd6 {[%emt 0:01:09]} 9. O-O {[%emt 0:01:01]} O-O {[%emt 0:00:49]} 10. Nbd2 {[%emt 0:03:39]} Qc7 {[%emt 0:00:22]} 11. Qe1 {[%emt 0:03:08]} h6 {[%emt 0:02:41]} 12. Bh4 {[%emt 0:10:31]} Rae8 {[%emt 0:01:06]} 13. dxe5 {[%emt 0:02:40]} Bxe5 {[%emt 0:00:22]} 14. Nxe5 {[%emt 0:00:37]} Rxe5 {[%emt 0:00:46]} 15. Bg3 {[%emt 0:00:22]} Qb6+ {[%emt 0:01:23]} 16. Kh1 {[%emt 0:00:41]} Rh5 {[%emt 0:09:07]} 17. Bd6 {[%emt 0:02:22]} Re8 {[%emt 0:02:22]} 18. Bb3 {[%emt 0:02:32]} Be6 {[%emt 0:06:40]} 19. Qg3 {[%emt 0:16:14]} Bxb3 {[%emt 0:10:28]} 20. axb3 {[%emt 0:03:00]} Nxe4 {[%emt 0:02:41]} 21. Nxe4 {[%emt 0:00:27]} Rxe4 {[%emt 0:00:08]} 22. Qf3 {[%emt 0:00:07]} Nf6 {[%emt 0:59:17]} 23. b4 {[%emt 0:03:17]} a6 {[%emt 0:00:00]} 24. Bc5 {[%emt 0:00:08]} Qb5 {[%emt 0:00:00]} 25. Bd4 {[%emt 0:01:24]} Re6 {[%emt 0:00:00]} 26. Ra5 {[%emt 0:02:37]} Qe2 {[%emt 0:00:00]} 27. Raa1 {[%emt 0:18:41]} Qxf3 {[%emt 0:00:00]} 28. Rxf3 {[%emt 0:04:47]} Ne4 {[%emt 0:00:00]} 29. Rd1 {[%emt 0:05:47]} Rd5 {[%emt 0:00:00]} 30. Rf4 {[%emt 0:01:51]} Rd7 {[%emt 0:00:00]} 31. Kg1 {[%emt 0:00:11]} Rde7 {[%emt 0:00:00]} 32. Rg4 {[%emt 0:01:04]} g5 {[%emt 0:00:00]} 33. h4 {[%emt 0:00:19]} f5 {[%emt 0:00:00]} 0-1

[Event "7th Summer Cup 2024"]
[Site "Rhodes"]
[Date "2024.06.28"]
[Round "7.13"]
[White "Ghaith Saeed Alnuaimi"]
[Black "Odysseos, Ioannis"]
[Result "1-0"]
[ECO "A05"]
[WhiteElo "1799"]
[BlackElo "1599"]
[Annotator "NA RC"]
[PlyCount "62"]
[EventDate "2024.06.21"]
[EventType "swiss"]
[EventCountry "GRE"]
[SourceTitle "playchess.com"]
[Source "ChessBase"]
[SourceQuality "1"]
[TimeControl "40/5400+30:900+30"]

1. Nf3 {[%emt 0:00:13]} Nf6 {[%emt 0:01:54]} 2. b3 {[%emt 0:00:08]} e6 {[%emt 0:01:04]} 3. Bb2 {[%emt 0:00:05]} Be7 {[%emt 0:00:32]} 4. g4 {[%emt 0:00:07]} O-O {[%emt 0:06:59]} 5. g5 {[%emt 0:00:04]} Ne4 {[%emt 0:03:02]} 6. h4 {[%emt 0:00:09]} d5 {[%emt 0:00:18]} 7. d3 {[%emt 0:00:41]} Nd6 {[%emt 0:00:12]} 8. Nbd2 {[%emt 0:03:07]} c5 {[%emt 0:02:30]} 9. Ne5 {[%emt 0:08:47]} f6 {[%emt 0:01:27]} 10. Nef3 {[%emt 0:03:15]} fxg5 {[%emt 0:01:19]} 11. hxg5 {[%emt 1:19:24]} Bxg5 {[%emt 0:00:46]} 12. Nxg5 {[%emt 0:00:00]} Qxg5 {[%emt 0:00:18]} 13. Nf3 {[%emt 0:00:00]} Qe7 {[%emt 0:02:07]} 14. Qd2 {[%emt 0:00:00]} d4 {[%emt 0:02:40]} 15. Bg2 {[%emt 0:00:00]} Nc6 {[%emt 0:01:53]} 16. O-O-O {[%emt 0:00:00]} Bd7 {[%emt 0:03:11]} 17. Rh5 {[%emt 0:00:00]} Nf5 {[%emt 0:06:11]} 18. Rdh1 {[%emt 0:00:00]} h6 {[%emt 0:00:34]} 19. e4 {[%emt 0:00:00]} dxe3 {[%emt 0:05:30]} 20. fxe3 {[%emt 0:00:00]} Ng3 {[%emt 0:02:39]} 21. Rxh6 {[%emt 0:00:00]} gxh6 {[%emt 0:05:14]} 22. Rxh6 {[%emt 0:00:00]} Qd6 {[%emt 0:20:50]} 23. e4 {[%emt 0:00:00]} Nxe4 {[%emt 0:11:27]} 24. Rg6+ {[%emt 0:00:00]} Kf7 {[%emt 0:01:20]} 25. Qh6 {[%emt 0:00:00]} Ke8 {[%emt 0:07:18]} 26. Qh5 {[%emt 0:00:00]} Qf4+ {[%emt 0:08:03]} 27. Kb1 {[%emt 0:00:00]} Nd2+ {[%emt 0:01:02]} 28. Nxd2 {[%emt 0:00:00]} Qxd2 {[%emt 0:00:13]} 29. Rg8+ {[%emt 0:00:00]} Ke7 {[%emt 0:01:36]} 30. Qxc5+ {[%emt 0:00:00]} Kf7 {[%emt 0:02:06]} 31. Qh5+ {[%emt 0:00:00]} Kxg8 {[%emt 0:00:37]} 1-0

[Event "7th Summer Cup 2024"]
[Site "Rhodes"]
[Date "2024.06.28"]
[Round "7.14"]
[White "Baruch, Amit"]
[Black "Van de Lagemaat, Arend"]
[Result "1/2-1/2"]
[ECO "B13"]
[WhiteElo "1614"]
[BlackElo "2030"]
[Annotator "NA RC"]
[PlyCount "82"]
[EventDate "2024.06.21"]
[EventType "swiss"]
[EventCountry "GRE"]
[SourceTitle "playchess.com"]
[Source "ChessBase"]
[SourceQuality "1"]
[TimeControl "40/5400+30:900+30"]

1. e4 {[%emt 0:00:03]} c6 {[%emt 0:00:05]} 2. d4 {[%emt 0:00:06]} d5 {[%emt 0:00:40]} 3. exd5 {[%emt 0:00:09]} cxd5 {[%emt 0:00:05]} 4. c4 {[%emt 0:00:07]} Nf6 {[%emt 0:00:05]} 5. Nc3 {[%emt 0:00:11]} Nc6 {[%emt 0:00:07]} 6. Nf3 {[%emt 0:00:12]} Bg4 {[%emt 0:00:08]} 7. cxd5 {[%emt 0:00:07]} Nxd5 {[%emt 0:01:04]} 8. Qb3 {[%emt 0:00:09]} Bxf3 {[%emt 0:01:29]} 9. gxf3 {[%emt 0:00:07]} e6 {[%emt 0:04:33]} 10. Qxb7 {[%emt 0:00:49]} Nxd4 {[%emt 0:00:20]} 11. Bb5+ {[%emt 0:00:12]} Nxb5 {[%emt 0:00:08]} 12. Qc6+ {[%emt 0:00:27]} Ke7 {[%emt 0:00:40]} 13. Qxb5 {[%emt 0:00:20]} Qd7 {[%emt 0:04:38]} 14. Nxd5+ {[%emt 0:00:12]} Qxd5 {[%emt 0:00:15]} 15. Bg5+ {[%emt 0:00:14]} f6 {[%emt 0:00:33]} 16. Qxd5 {[%emt 0:00:18]} exd5 {[%emt 0:00:07]} 17. Be3 {[%emt 0:00:13]} Ke6 {[%emt 0:00:30]} 18. O-O-O {[%emt 0:01:22]} Bb4 $11 {[%emt 0:03:19]} 19. Rd3 {[%emt 0:01:49]} Rhc8+ {[%emt 0:05:22]} 20. Kb1 {[%emt 0:01:07]} Bc5 {[%emt 0:01:52]} 21. Re1 {[%emt 0:06:39]} Bxe3 {[%emt 0:09:23]} 22. Rdxe3+ {[%emt 0:02:52]} Kf5 {[%emt 0:01:02]} 23. Re7 {[%emt 0:00:55]} Kf4 {[%emt 0:17:08]} 24. R1e3 {[%emt 0:14:10]} Rc4 {[%emt 0:11:31]} 25. Rxg7 {[%emt 0:01:06]} Rac8 {[%emt 0:00:17]} 26. Rg4+ {[%emt 0:16:04]} Kf5 {[%emt 0:00:07]} 27. Rxc4 {[%emt 0:00:39]} Rxc4 {[%emt 0:00:18]} 28. Re7 {[%emt 0:00:30]} Kf4 {[%emt 0:03:20]} 29. Rxa7 {[%emt 0:03:45]} Kxf3 {[%emt 0:00:24]} 30. Rxh7 {[%emt 0:00:43]} f5 {[%emt 0:14:23]} 31. b3 {[%emt 0:08:06]} Re4 {[%emt 0:06:05]} 32. a4 {[%emt 0:42:47]} Kxf2 {[%emt 0:02:13]} 33. Rh5 {[%emt 0:00:00]} d4 {[%emt 0:08:18]} 34. Rxf5+ {[%emt 0:00:00]} Ke2 {[%emt 0:00:06]} 35. Kc2 {[%emt 0:00:00]} Re8 {[%emt 0:06:16]} 36. Rd5 {[%emt 0:00:00]} Rc8+ {[%emt 0:00:05]} 37. Kb2 {[%emt 0:00:00]} d3 {[%emt 0:00:02]} 38. Re5+ {[%emt 0:00:00]} Kd1 {[%emt 0:00:05]} 39. a5 {[%emt 0:00:00]} d2 {[%emt 0:02:10]} 40. a6 {[%emt 0:00:00]} Rc2+ {[%emt 0:00:00]} 41. Kb1 {[%emt 0:00:00]} Rc1+ {[%emt 0:01:50]} 1/2-1/2